Workbook

Sheet 2013 рік
B1: Інформація про використання коштів із місцевого бюджету за 2013 рік по загальному фону, КФК 070101 "Дошкільні заклади освіти" .
A2: № днз | B2: КЕКВ 2111 Заробітна плата | D2: КЕКВ 2120 Нарахування на оплату праці | F2: КЕКВ 2210 Предмети, матеріали, обладнання та інвентар | I2: КЕКВ 2220 Медикаменти та перев'язувальні матеріали | K2: КЕКВ 2230 Продукти харчування | M2: КЕКВ 2240 Оплата послуг (крім комунальних) | P2: КЕКВ 2250 Видатки на відрядження | R2: КЕКВ 2271 Оплата теплопостачання | U2: КЕКВ 2272 Оплата водопостачання та водовідведення | W2: КЕКВ 2273 Оплата електроенергії | Y2: КЕКВ 2274 Оплата природного газу | AA2: КЕКВ 2800 Інші видатки | AC2: Всього
B5: Затверджено | C5: Використано | D5: Затверджено | E5: Використано | F5: Затверджено | G5: Використано | H5: Заборгованість станом на 31.12.2013р. | I5: Затверджено | J5: Використано | K5: Затверджено | L5: Використано | M5: Затверджено | N5: Використано | O5: Заборгованість станом на 31.12.2013р. | P5: Затверджено | Q5: Використано | R5: Затверджено | S5: Використано | T5: Заборгованість станом на 31.12.2013р. | U5: Затверджено | V5: Використано | W5: Затверджено | X5: Використано | Y5: Затверджено | Z5: Використано | AA5: Затверджено | AB5: Використано | AC5: Затверджено | AD5: Використано
B6: =1+A6 -> 1 | D6: =1+B6 -> 2 | F6: =1+D6 -> 3 | I6: =1+F6 -> 4 | K6: =1+I6 -> 5 | M6: =1+K6 -> 6 | P6: =1+M6 -> 7 | R6: =1+P6 -> 8 | U6: 9 | W6: =1+U6 -> 10 | Y6: =1+W6 -> 11 | AA6: =1+Y6 -> 12 | AC6: =1+AA6 -> 13
A7: 1 | B7: ='[1]Лист1 (3)'!AF5 -> 1673669 | C7: 1673669.3 | D7: ='[2]Лист1 (3)'!AE5 -> 603469 | E7: 603469.01 | F7: =[3]Лист1!R5 -> 0 | G7: 0 | H7: =F7-G7 -> 0 | I7: =[4]Лист1!X5 -> 300 | J7: 300 | K7: =[5]Лист1!V5 -> 235380 | L7: 235379.65 | M7: ='[6]2240'!AB5 -> 12490 | N7: 7609.41 | O7: =M7-N7 -> 4880.59 | P7: =[7]Лист1!AD5 -> 0 | Q7: 0 | R7: =[8]Лист1!AG5 -> 470942 | S7: 411737.63 | T7: =R7-S7 -> 59204.37 | U7: =[9]Лист1!AA5 -> 9981 | V7: 9981.26 | W7: =[10]Лист1!AD5 -> 57661 | X7: 57661.43 | Y7: =[11]Лист1!S5 -> 0 | Z7: 0 | AA7: =[12]Лист1!S5 -> 240 | AB7: 239.21 | AC7: =B7+D7+F7+I7+K7+M7+P7+R7+U7+W7+Y7+AA7 -> 3064132 | AD7: 3000046.9
A8: 2 | B8: ='[1]Лист1 (3)'!AF6 -> 729001 | C8: 729000.97 | D8: ='[2]Лист1 (3)'!AE6 -> 262351 | E8: 262350.64 | F8: =[3]Лист1!R6 -> 0 | G8: 0 | H8: =F8-G8 -> 0 | I8: =[4]Лист1!X6 -> 500 | J8: 500 | K8: =[5]Лист1!V6 -> 155025 | L8: 155024.76 | M8: ='[6]2240'!AB6 -> 7340 | N8: 7163.05 | O8: =M8-N8 -> 176.95 | P8: =[7]Лист1!AD6 -> 90 | Q8: 0 | R8: =[8]Лист1!AG6 -> 244579 | S8: 215193.36 | T8: 29385.64 | U8: =[9]Лист1!AA6 -> 7115 | V8: 7114.39 | W8: =[10]Лист1!AD6 -> 49461 | X8: 49460.59 | Y8: =[11]Лист1!S6 -> 0 | Z8: 0 | AA8: =[12]Лист1!S6 -> 0 | AC8: 1455462 | AD8: 1425807.76
A9: 3 | B9: ='[1]Лист1 (3)'!AF7 -> 1575141 | C9: 1575140.44 | D9: ='[2]Лист1 (3)'!AE7 -> 558177 | E9: 558176.95 | F9: =[3]Лист1!R7 -> 0 | G9: 0 | H9: 0 | I9: =[4]Лист1!X7 -> 600 | J9: 600 | K9: =[5]Лист1!V7 -> 210517 | L9: 210516.75 | M9: ='[6]2240'!AB7 -> 15300 | N9: 9183.78 | O9: 6116.22 | P9: =[7]Лист1!AD7 -> 0 | Q9: 0 | R9: =[8]Лист1!AG7 -> 576300 | S9: 476909.04 | T9: 99390.96 | U9: =[9]Лист1!AA7 -> 14337 | V9: 14337.02 | W9: =[10]Лист1!AD7 -> 49680 | X9: 49679.67 | Y9: =[11]Лист1!S7 -> 0 | Z9: 0 | AA9: =[12]Лист1!S7 -> 0 | AC9: 3000052 | AD9: 2894543.65
A10: 4 | B10: ='[1]Лист1 (3)'!AF8 -> 1680867 | C10: 1680867.06 | D10: ='[2]Лист1 (3)'!AE8 -> 583202 | E10: 583201.8 | F10: =[3]Лист1!R8 -> 0 | G10: 0 | H10: 0 | I10: =[4]Лист1!X8 -> 0 | J10: 0 | K10: =[5]Лист1!V8 -> 256074 | L10: 256074 | M10: ='[6]2240'!AB8 -> 11610 | N10: 6237.72 | O10: 5372.28 | P10: =[7]Лист1!AD8 -> 0 | Q10: 0 | R10: =[8]Лист1!AG8 -> 666312 | S10: 579335.05 | T10: 86976.95 | U10: =[9]Лист1!AA8 -> 19216 | V10: 19216.15 | W10: =[10]Лист1!AD8 -> 56947 | X10: 56946.97 | Y10: =[11]Лист1!S8 -> 0 | Z10: 0 | AA10: =[12]Лист1!S8 -> 0 | AC10: 3274228 | AD10: 3181878.75
A11: 5 | B11: ='[1]Лист1 (3)'!AF9 -> 1745557 | C11: 1745556.98 | D11: ='[2]Лист1 (3)'!AE9 -> 633743 | E11: 633743.05 | F11: =[3]Лист1!R9 -> 35995 | G11: 35993.4 | H11: 1.6 | I11: =[4]Лист1!X9 -> 495 | J11: 495 | K11: =[5]Лист1!V9 -> 261387 | L11: 261386.66 | M11: ='[6]2240'!AB9 -> 10890 | N11: 5509.46 | O11: 5380.54 | P11: =[7]Лист1!AD9 -> 0 | Q11: 0 | R11: =[8]Лист1!AG9 -> 514420 | S11: 445627.56 | T11: 68792.44 | U11: =[9]Лист1!AA9 -> 12293 | V11: 12294.07 | W11: =[10]Лист1!AD9 -> 62152 | X11: 62151.74 | Y11: =[11]Лист1!S9 -> 0 | Z11: 0 | AA11: =[12]Лист1!S9 -> 0 | AC11: 3276932 | AD11: 3202757.92
A12: 6 | B12: ='[1]Лист1 (3)'!AF10 -> 1458649 | C12: 1458649.2 | D12: ='[2]Лист1 (3)'!AE10 -> 524458 | E12: 524458.1 | F12: =[3]Лист1!R10 -> 0 | G12: 0 | H12: 0 | I12: =[4]Лист1!X10 -> 0 | J12: 0 | K12: =[5]Лист1!V10 -> 211273 | L12: 211272.98 | M12: ='[6]2240'!AB10 -> 14440 | N12: 9018.87 | O12: 5421.13 | P12: =[7]Лист1!AD10 -> 0 | Q12: 0 | R12: =[8]Лист1!AG10 -> 594471 | S12: 529166.69 | T12: 65304.31 | U12: =[9]Лист1!AA10 -> 10607 | V12: 10606.79 | W12: =[10]Лист1!AD10 -> 64202 | X12: 64202.11 | Y12: =[11]Лист1!S10 -> 0 | Z12: 0 | AA12: =[12]Лист1!S10 -> 91 | AB12: 90.08 | AC12: 2878191 | AD12: 2807464.82
A13: 7 | B13: ='[1]Лист1 (3)'!AF11 -> 1461397 | C13: 1461396.79 | D13: ='[2]Лист1 (3)'!AE11 -> 493958 | E13: 493958.06 | F13: =[3]Лист1!R11 -> 0 | G13: 0 | H13: 0 | I13: =[4]Лист1!X11 -> 800 | J13: 800 | K13: =[5]Лист1!V11 -> 277509 | L13: 277508.33 | M13: ='[6]2240'!AB11 -> 5650 | N13: 5475.87 | O13: 174.13 | P13: =[7]Лист1!AD11 -> 0 | Q13: 0 | R13: =[8]Лист1!AG11 -> 746234 | S13: 653609.55 | T13: 92624.45 | U13: =[9]Лист1!AA11 -> 16022 | V13: 16022.15 | W13: =[10]Лист1!AD11 -> 70087 | X13: 70087.41 | Y13: =[11]Лист1!S11 -> 0 | Z13: 0 | AA13: =[12]Лист1!S11 -> 0 | AC13: 3071657 | AD13: 2978858.16
A14: 8 | B14: ='[1]Лист1 (3)'!AF12 -> 793547 | C14: 793546.44 | D14: ='[2]Лист1 (3)'!AE12 -> 269183 | E14: 269182.83 | F14: =[3]Лист1!R12 -> 0 | G14: 0 | H14: 0 | I14: =[4]Лист1!X12 -> 600 | J14: 600 | K14: =[5]Лист1!V12 -> 118301 | L14: 118300.39 | M14: ='[6]2240'!AB12 -> 7440 | N14: 7260.62 | O14: 179.38 | P14: =[7]Лист1!AD12 -> 0 | Q14: 0 | R14: =[8]Лист1!AG12 -> 217873 | S14: 194104.63 | T14: 23768.37 | U14: =[9]Лист1!AA12 -> 8660 | V14: 8659.95 | W14: =[10]Лист1!AD12 -> 52595 | X14: 52594.54 | Y14: =[11]Лист1!S12 -> 0 | Z14: 0 | AA14: =[12]Лист1!S12 -> 0 | AC14: 1468199 | AD14: 1444249.4
A15: 9 | B15: ='[1]Лист1 (3)'!AF13 -> 1765083 | C15: 1765082.48 | D15: ='[2]Лист1 (3)'!AE13 -> 631738 | E15: 631737.52 | F15: =[3]Лист1!R13 -> 0 | G15: 0 | H15: 0 | I15: =[4]Лист1!X13 -> 500 | J15: 500 | K15: =[5]Лист1!V13 -> 179840 | L15: 179839.72 | M15: ='[6]2240'!AB13 -> 17450 | N15: 12079.07 | O15: 5370.93 | P15: =[7]Лист1!AD13 -> 2139 | Q15: 2138.04 | R15: =[8]Лист1!AG13 -> 727374 | S15: 613649.63 | T15: 113724.37 | U15: =[9]Лист1!AA13 -> 16192 | V15: 16192.5 | W15: =[10]Лист1!AD13 -> 53336 | X15: 53335.71 | Y15: =[11]Лист1!S13 -> 0 | Z15: 0 | AA15: =[12]Лист1!S13 -> 0 | AC15: 3393652 | AD15: 3274554.67
A16: 10 | B16: ='[1]Лист1 (3)'!AF14 -> 1766653 | C16: 1766653.1 | D16: ='[2]Лист1 (3)'!AE14 -> 649919 | E16: 649919.36 | F16: =[3]Лист1!R14 -> 0 | G16: 0 | H16: 0 | I16: =[4]Лист1!X14 -> 200 | J16: 200 | K16: =[5]Лист1!V14 -> 363477 | L16: 363476.58 | M16: ='[6]2240'!AB14 -> 11340 | N16: 11126.85 | O16: 213.15 | P16: =[7]Лист1!AD14 -> 0 | Q16: 0 | R16: =[8]Лист1!AG14 -> 637993 | S16: 558469.19 | T16: 79523.81 | U16: =[9]Лист1!AA14 -> 24827 | V16: 24827.28 | W16: =[10]Лист1!AD14 -> 90541 | X16: 90540.81 | Y16: =[11]Лист1!S14 -> 0 | Z16: 0 | AA16: =[12]Лист1!S14 -> 6 | AB16: 5.35 | AC16: 3544956 | AD16: 3465218.52
A17: 11 | B17: ='[1]Лист1 (3)'!AF15 -> 1663427 | C17: 1663427.03 | D17: ='[2]Лист1 (3)'!AE15 -> 590999 | E17: 590999.41 | F17: =[3]Лист1!R15 -> 0 | G17: 0 | H17: 0 | I17: =[4]Лист1!X15 -> 600 | J17: 600 | K17: =[5]Лист1!V15 -> 293191 | L17: 293190.07 | M17: ='[6]2240'!AB15 -> 6730 | N17: 6554.71 | O17: 175.29 | P17: =[7]Лист1!AD15 -> 0 | Q17: 0 | R17: =[8]Лист1!AG15 -> 807308 | S17: 699365.94 | T17: 107942.06 | U17: =[9]Лист1!AA15 -> 19351 | V17: 19350.63 | W17: =[10]Лист1!AD15 -> 90592 | X17: 90592.21 | Y17: =[11]Лист1!S15 -> 0 | Z17: 0 | AA17: =[12]Лист1!S15 -> 0 | AC17: 3472198 | AD17: 3364080
A18: 12 | B18: ='[1]Лист1 (3)'!AF16 -> 593065 | C18: 593065.13 | D18: ='[2]Лист1 (3)'!AE16 -> 205740 | E18: 205740.4 | F18: =[3]Лист1!R16 -> 0 | G18: 0 | H18: 0 | I18: =[4]Лист1!X16 -> 500 | J18: 500 | K18: =[5]Лист1!V16 -> 77937 | L18: 77936.62 | M18: ='[6]2240'!AB16 -> 6140 | N18: 3663.81 | O18: 2476.19 | P18: =[7]Лист1!AD16 -> 0 | Q18: 0 | R18: =[8]Лист1!AG16 -> 0 | T18: 0 | U18: =[9]Лист1!AA16 -> 3604 | V18: 3603.71 | W18: =[10]Лист1!AD16 -> 14805 | X18: 14805.16 | Y18: =[11]Лист1!S16 -> 82932 | Z18: 82932.21 | AA18: =[12]Лист1!S16 -> 58 | AB18: 58.41 | AC18: 984781 | AD18: 982305.45
A19: 13 | B19: ='[1]Лист1 (3)'!AF17 -> 1598913 | C19: 1598912.6 | D19: ='[2]Лист1 (3)'!AE17 -> 553658 | E19: 553658.39 | F19: =[3]Лист1!R17 -> 0 | G19: 0 | H19: 0 | I19: =[4]Лист1!X17 -> 500 | J19: 500 | K19: 205103 | L19: 205103.01 | M19: ='[6]2240'!AB17 -> 14080 | N19: 7949.84 | O19: =M19-N19 -> 6130.16 | P19: =[7]Лист1!AD17 -> 0 | Q19: 0 | R19: =[8]Лист1!AG17 -> 723450 | S19: 647693.48 | T19: 75756.52 | U19: =[9]Лист1!AA17 -> 35963 | V19: 35962.8 | W19: =[10]Лист1!AD17 -> 56193 | X19: 56193.29 | Y19: =[11]Лист1!S17 -> 0 | Z19: 0 | AA19: =[12]Лист1!S17 -> 0 | AC19: 3187860 | AD19: 3105973.41
A20: 14 | B20: ='[1]Лист1 (3)'!AF18 -> 1674533 | C20: 1674532.77 | D20: ='[2]Лист1 (3)'!AE18 -> 606213 | E20: 606212.66 | F20: =[3]Лист1!R18 -> 0 | G20: 0 | H20: 0 | I20: =[4]Лист1!X18 -> 400 | J20: 400 | K20: =[5]Лист1!V18 -> 233073 | L20: 233072.45 | M20: ='[6]2240'!AB18 -> 13280 | N20: 7875.34 | O20: 5404.66 | P20: =[7]Лист1!AD18 -> 0 | Q20: 0 | R20: =[8]Лист1!AG18 -> 530225 | S20: 463054.46 | T20: 67170.54 | U20: =[9]Лист1!AA18 -> 16687 | V20: 16686.51 | W20: =[10]Лист1!AD18 -> 61162 | X20: 61161.88 | Y20: =[11]Лист1!S18 -> 0 | Z20: 0 | AA20: =[12]Лист1!S18 -> 180 | AB20: 179.65 | AC20: 3135753 | AD20: 3063175.72
A21: 15 | B21: ='[1]Лист1 (3)'!AF19 -> 486009 | C21: 486009.35 | D21: ='[2]Лист1 (3)'!AE19 -> 174568 | E21: 174568.38 | F21: =[3]Лист1!R19 -> 0 | G21: 0 | H21: 0 | I21: =[4]Лист1!X19 -> 500 | J21: 500 | K21: =[5]Лист1!V19 -> 56275 | L21: 56274.69 | M21: ='[6]2240'!AB19 -> 5790 | N21: 3977.05 | O21: 1812.95 | P21: =[7]Лист1!AD19 -> 0 | Q21: 0 | R21: =[8]Лист1!AG19 -> 79130 | S21: 70898.04 | T21: 8231.96 | U21: =[9]Лист1!AA19 -> 2519 | V21: 2519.05 | W21: =[10]Лист1!AD19 -> 7637 | X21: 7636.77 | Y21: =[11]Лист1!S19 -> 6283 | Z21: 6282.89 | AA21: =[12]Лист1!S19 -> 97 | AB21: 96.74 | AC21: 818808 | AD21: 808762.96
A22: 16 | B22: ='[1]Лист1 (3)'!AF20 -> 901587 | C22: 901587.15 | D22: ='[2]Лист1 (3)'!AE20 -> 317645 | E22: 317644.65 | F22: =[3]Лист1!R20 -> 0 | G22: 0 | H22: 0 | I22: =[4]Лист1!X20 -> 800 | J22: 800 | K22: =[5]Лист1!V20 -> 136214 | L22: 136213.71 | M22: ='[6]2240'!AB20 -> 8440 | N22: 4866.19 | O22: 3573.81 | P22: =[7]Лист1!AD20 -> 0 | Q22: 0 | R22: =[8]Лист1!AG20 -> 238307 | S22: 209933.06 | T22: 28373.94 | U22: =[9]Лист1!AA20 -> 10641 | V22: 10641.41 | W22: =[10]Лист1!AD20 -> 46823 | X22: 46822.3 | Y22: =[11]Лист1!S20 -> 0 | Z22: 0 | AA22: =[12]Лист1!S20 -> 0 | AC22: 1660457 | AD22: 1628508.47
A23: 17 | B23: ='[1]Лист1 (3)'!AF21 -> 745779 | C23: 745779.14 | D23: ='[2]Лист1 (3)'!AE21 -> 269211 | E23: 269211.32 | F23: =[3]Лист1!R21 -> 0 | G23: 0 | H23: 0 | I23: =[4]Лист1!X21 -> 0 | J23: 0 | K23: =[5]Лист1!V21 -> 135963 | L23: 135962.28 | M23: ='[6]2240'!AB21 -> 7470 | N23: 3894.35 | O23: 3575.65 | P23: =[7]Лист1!AD21 -> 0 | Q23: 0 | R23: =[8]Лист1!AG21 -> 295556 | S23: 253722.71 | T23: 41833.29 | U23: =[9]Лист1!AA21 -> 10086 | V23: 10085.52 | W23: =[10]Лист1!AD21 -> 11039 | X23: 11038.52 | Y23: =[11]Лист1!S21 -> 65296 | Z23: 65295.8 | AA23: =[12]Лист1!S21 -> 0 | AC23: 1540400 | AD23: 1494989.64
A24: 18 | B24: ='[1]Лист1 (3)'!AF22 -> 845816 | C24: 845816.29 | D24: ='[2]Лист1 (3)'!AE22 -> 306414 | E24: 306414.17 | F24: =[3]Лист1!R22 -> 0 | G24: 0 | H24: 0 | I24: =[4]Лист1!X22 -> 200 | J24: 200 | K24: =[5]Лист1!V22 -> 135593 | L24: 135592.57 | M24: ='[6]2240'!AB22 -> 19350 | N24: 13896.27 | O24: 5453.73 | P24: =[7]Лист1!AD22 -> 275 | Q24: 273.35 | R24: =[8]Лист1!AG22 -> 0 | T24: 0 | U24: =[9]Лист1!AA22 -> 7683 | V24: 7682.59 | W24: =[10]Лист1!AD22 -> 51560 | X24: 51559.39 | Y24: =[11]Лист1!S22 -> 179828 | Z24: 179828.18 | AA24: =[12]Лист1!S22 -> 146 | AB24: 145.83 | AC24: 1546865 | AD24: 1541408.64
A25: 19 | B25: ='[1]Лист1 (3)'!AF23 -> 1550182 | C25: 1550182.32 | D25: ='[2]Лист1 (3)'!AE23 -> 546217 | E25: 546217.06 | F25: =[3]Лист1!R23 -> 0 | G25: 0 | H25: 0 | I25: =[4]Лист1!X23 -> 0 | J25: 0 | K25: 243647 | L25: 243647.03 | M25: ='[6]2240'!AB23 -> 13950 | N25: 8828.02 | O25: 5121.98 | P25: =[7]Лист1!AD23 -> 0 | Q25: 0 | R25: =[8]Лист1!AG23 -> 310208 | S25: 266680.7 | T25: 43527.3 | U25: =[9]Лист1!AA23 -> 12786 | V25: 12785.86 | W25: =[10]Лист1!AD23 -> 68852 | X25: 68852.13 | Y25: =[11]Лист1!S23 -> 0 | Z25: 0 | AA25: =[12]Лист1!S23 -> 35 | AB25: 33.99 | AC25: 2745877 | AD25: 2697227.11
A26: 20 | B26: 1343965 | C26: 1343965.29 | D26: ='[2]Лист1 (3)'!AE24 -> 471508 | E26: 471507.8 | F26: =[3]Лист1!R24 -> 0 | G26: 0 | H26: 0 | I26: =[4]Лист1!X24 -> 500 | J26: 500 | K26: 200936 | L26: 200936.07 | M26: ='[6]2240'!AB24 -> 10560 | N26: 5746.6 | O26: 4813.4 | P26: =[7]Лист1!AD24 -> 0 | Q26: 0 | R26: =[8]Лист1!AG24 -> 543370 | S26: 483984.85 | T26: 59385.15 | U26: =[9]Лист1!AA24 -> 9232 | V26: 9232.02 | W26: =[10]Лист1!AD24 -> 41700 | X26: 41699.76 | Y26: =[11]Лист1!S24 -> 0 | Z26: 0 | AA26: =[12]Лист1!S24 -> 0 | AC26: 2621771 | AD26: 2557572.39
A27: 21 | B27: ='[1]Лист1 (3)'!AF25 -> 1947541 | C27: 1947540.73 | D27: ='[2]Лист1 (3)'!AE25 -> 665630 | E27: 665630.42 | F27: =[3]Лист1!R25 -> 0 | G27: 0 | H27: 0 | I27: =[4]Лист1!X25 -> 500 | J27: 500 | K27: =[5]Лист1!V25 -> 187736 | L27: 187735.45 | M27: ='[6]2240'!AB25 -> 12500 | N27: 7229.14 | O27: 5270.86 | P27: =[7]Лист1!AD25 -> 0 | Q27: 0 | R27: =[8]Лист1!AG25 -> 614462 | S27: 532899.33 | T27: 81562.67 | U27: =[9]Лист1!AA25 -> 12682 | V27: 12681.68 | W27: =[10]Лист1!AD25 -> 58302 | X27: 58301.73 | Y27: =[11]Лист1!S25 -> 0 | Z27: 0 | AA27: =[12]Лист1!S25 -> 0 | AC27: 3499353 | AD27: 3412518.48
A28: 22 | B28: ='[1]Лист1 (3)'!AF26 -> 1442783 | C28: 1442783.17 | D28: ='[2]Лист1 (3)'!AE26 -> 511829 | E28: 511829.32 | F28: =[3]Лист1!R26 -> 0 | G28: 0 | H28: 0 | I28: =[4]Лист1!X26 -> 200 | J28: 200 | K28: =[5]Лист1!V26 -> 208697 | L28: 208696.7 | M28: ='[6]2240'!AB26 -> 17490 | N28: 17314.81 | O28: 175.19 | P28: =[7]Лист1!AD26 -> 0 | Q28: 0 | R28: =[8]Лист1!AG26 -> 471439 | S28: 419354.23 | T28: 52084.77 | U28: =[9]Лист1!AA26 -> 11663 | V28: 11662.64 | W28: =[10]Лист1!AD26 -> 57068 | X28: 57068.36 | Y28: =[11]Лист1!S26 -> 0 | Z28: 0 | AA28: =[12]Лист1!S26 -> 50 | AB28: 49.76 | AC28: 2721219 | AD28: 2668958.99
A29: 23 | B29: ='[1]Лист1 (3)'!AF27 -> 1493332 | C29: 1493332.36 | D29: ='[2]Лист1 (3)'!AE27 -> 468623 | E29: 468623.25 | F29: =[3]Лист1!R27 -> 0 | G29: 0 | H29: 0 | I29: =[4]Лист1!X27 -> 600 | J29: 600 | K29: =[5]Лист1!V27 -> 177033 | L29: 177032.55 | M29: ='[6]2240'!AB27 -> 11630 | N29: 6551.04 | O29: 5078.96 | P29: =[7]Лист1!AD27 -> 0 | Q29: 0 | R29: =[8]Лист1!AG27 -> 498139 | S29: 439171.15 | T29: 58967.85 | U29: =[9]Лист1!AA27 -> 11120 | V29: 11119.72 | W29: =[10]Лист1!AD27 -> 41596 | X29: 41596.44 | Y29: =[11]Лист1!S27 -> 0 | Z29: 0 | AA29: =[12]Лист1!S27 -> 0 | AC29: 2702073 | AD29: 2638026.51
A30: 24 | B30: ='[1]Лист1 (3)'!AF28 -> 1457911 | C30: 1457910.61 | D30: ='[2]Лист1 (3)'!AE28 -> 511752 | E30: 511751.52 | F30: =[3]Лист1!R28 -> 0 | G30: 0 | H30: 0 | I30: =[4]Лист1!X28 -> 400 | J30: 400 | K30: =[5]Лист1!V28 -> 219226 | L30: 219225.24 | M30: ='[6]2240'!AB28 -> 13830 | N30: 13653.09 | O30: 176.91 | P30: =[7]Лист1!AD28 -> 0 | Q30: 0 | R30: =[8]Лист1!AG28 -> 424362 | S30: 376561.58 | T30: 47800.42 | U30: =[9]Лист1!AA28 -> 9338 | V30: 9338.33 | W30: =[10]Лист1!AD28 -> 38987 | X30: 38986.83 | Y30: =[11]Лист1!S28 -> 0 | Z30: 0 | AA30: =[12]Лист1!S28 -> 0 | AC30: 2675806 | AD30: 2627827.2
A31: 25 | B31: ='[1]Лист1 (3)'!AF29 -> 834540 | C31: 834539.89 | D31: ='[2]Лист1 (3)'!AE29 -> 294138 | E31: 294137.71 | F31: =[3]Лист1!R29 -> 0 | G31: 0 | H31: 0 | I31: =[4]Лист1!X29 -> 500 | J31: 500 | K31: 124266 | L31: 124266.02 | M31: ='[6]2240'!AB29 -> 4130 | N31: 3951.08 | O31: 178.92 | P31: =[7]Лист1!AD29 -> 0 | Q31: 0 | R31: =[8]Лист1!AG29 -> 279812 | S31: 243923.16 | T31: 35888.84 | U31: =[9]Лист1!AA29 -> 9101 | V31: 9100.83 | W31: =[10]Лист1!AD29 -> 7510 | X31: 7510.35 | Y31: =[11]Лист1!S29 -> 18790 | Z31: 18789.58 | AA31: =[12]Лист1!S29 -> 0 | AC31: 1572787 | AD31: 1536718.62
A32: 26 | B32: ='[1]Лист1 (3)'!AF30 -> 833749 | C32: 833748.98 | D32: ='[2]Лист1 (3)'!AE30 -> 300506 | E32: 300505.55 | F32: =[3]Лист1!R30 -> 0 | G32: 0 | H32: 0 | I32: =[4]Лист1!X30 -> 500 | J32: 500 | K32: =[5]Лист1!V30 -> 120347 | L32: 120346.74 | M32: ='[6]2240'!AB30 -> 9110 | N32: 8897.28 | O32: 212.72 | P32: =[7]Лист1!AD30 -> 0 | Q32: 0 | R32: =[8]Лист1!AG30 -> 189216 | S32: 172308.33 | T32: 16907.67 | U32: =[9]Лист1!AA30 -> 11132 | V32: 11132.2 | W32: =[10]Лист1!AD30 -> 12668 | X32: 12668.09 | Y32: =[11]Лист1!S30 -> 34161 | Z32: 34160.99 | AA32: =[12]Лист1!S30 -> 108 | AB32: 107.26 | AC32: 1511497 | AD32: 1494375.42
A33: 27 | B33: ='[1]Лист1 (3)'!AF31 -> 1513590 | C33: 1513590.35 | D33: ='[2]Лист1 (3)'!AE31 -> 536671 | E33: 536671.42 | F33: =[3]Лист1!R31 -> 0 | G33: 0 | H33: 0 | I33: =[4]Лист1!X31 -> 500 | J33: 500 | K33: =[5]Лист1!V31 -> 253262 | L33: 253261.86 | M33: ='[6]2240'!AB31 -> 13510 | N33: 8137.37 | O33: 5372.63 | P33: =[7]Лист1!AD31 -> 0 | Q33: 0 | R33: =[8]Лист1!AG31 -> 584680 | S33: 523582.12 | T33: 61097.88 | U33: =[9]Лист1!AA31 -> 9548 | V33: 9548.36 | W33: =[10]Лист1!AD31 -> 59635 | X33: 59635.35 | Y33: =[11]Лист1!S31 -> 0 | Z33: 0 | AA33: =[12]Лист1!S31 -> 0 | AC33: 2971396 | AD33: 2904926.83
A34: 28 | B34: ='[1]Лист1 (3)'!AF32 -> 1572290 | C34: 1572290.12 | D34: ='[2]Лист1 (3)'!AE32 -> 562535 | E34: 562535.4 | F34: =[3]Лист1!R32 -> 0 | G34: 0 | H34: 0 | I34: =[4]Лист1!X32 -> 450 | J34: 450 | K34: =[5]Лист1!V32 -> 76974 | L34: 76973.94 | M34: ='[6]2240'!AB32 -> 100250 | N34: 96784.77 | O34: 3465.23 | P34: =[7]Лист1!AD32 -> 0 | Q34: 0 | R34: =[8]Лист1!AG32 -> 225200 | S34: 202096.81 | T34: 23103.19 | U34: =[9]Лист1!AA32 -> 5517 | V34: 5517.26 | W34: =[10]Лист1!AD32 -> 10753 | X34: 10753.04 | Y34: =[11]Лист1!S32 -> 21085 | Z34: 21085.08 | AA34: =[12]Лист1!S32 -> 0 | AC34: 2575054 | AD34: 2548486.42
A35: 29 | B35: ='[1]Лист1 (3)'!AF33 -> 1032369 | C35: 1032369 | D35: ='[2]Лист1 (3)'!AE33 -> 362305 | E35: 362305.28 | F35: =[3]Лист1!R33 -> 0 | G35: 0 | H35: 0 | I35: =[4]Лист1!X33 -> 300 | J35: 300 | K35: =[5]Лист1!V33 -> 233897 | L35: 233896.13 | M35: ='[6]2240'!AB33 -> 7590 | N35: 7415.83 | O35: 174.17 | P35: =[7]Лист1!AD33 -> 0 | Q35: 0 | R35: =[8]Лист1!AG33 -> 195032 | S35: 171544.59 | T35: 23487.41 | U35: =[9]Лист1!AA33 -> 7009 | V35: 7008.86 | W35: =[10]Лист1!AD33 -> 14544 | X35: 14544.07 | Y35: =[11]Лист1!S33 -> 22010 | Z35: 22010.12 | AA35: =[12]Лист1!S33 -> 2 | AB35: 1.8 | AC35: 1875058 | AD35: 1851395.68
A36: 30 | B36: ='[1]Лист1 (3)'!AF34 -> 1425021 | C36: 1425020.49 | D36: ='[2]Лист1 (3)'!AE34 -> 507856 | E36: 507856.07 | F36: =[3]Лист1!R34 -> 0 | G36: 0 | H36: 0 | I36: =[4]Лист1!X34 -> 500 | J36: 500 | K36: 219756 | L36: 219756.14 | M36: ='[6]2240'!AB34 -> 11700 | N36: 6322.75 | O36: 5377.25 | P36: =[7]Лист1!AD34 -> 0 | Q36: 0 | R36: =[8]Лист1!AG34 -> 587610 | S36: 532579.46 | T36: 55030.54 | U36: =[9]Лист1!AA34 -> 12297 | V36: 12296.85 | W36: =[10]Лист1!AD34 -> 45133 | X36: 45133.2 | Y36: =[11]Лист1!S34 -> 0 | Z36: 0 | AA36: =[12]Лист1!S34 -> 0 | AC36: 2809873 | AD36: 2749464.96
A37: 31 | B37: ='[1]Лист1 (3)'!AF35 -> 1394673 | C37: 1394673.32 | D37: ='[2]Лист1 (3)'!AE35 -> 510824 | E37: 510824.02 | F37: =[3]Лист1!R35 -> 0 | G37: 0 | H37: 0 | I37: =[4]Лист1!X35 -> 0 | J37: 0 | K37: =[5]Лист1!V35 -> 206199 | L37: 206198.34 | M37: ='[6]2240'!AB35 -> 12550 | N37: 6482.19 | O37: 6067.81 | P37: =[7]Лист1!AD35 -> 1011 | Q37: 1632.48 | R37: =[8]Лист1!AG35 -> 590098 | S37: 508217.82 | T37: 81880.18 | U37: =[9]Лист1!AA35 -> 10878 | V37: 10877.84 | W37: =[10]Лист1!AD35 -> 72221 | X37: 72221.37 | Y37: =[11]Лист1!S35 -> 0 | Z37: 0 | AA37: =[12]Лист1!S35 -> 334 | AB37: 333.39 | AC37: 2798788 | AD37: 2711460.77
A38: 32 | B38: ='[1]Лист1 (3)'!AF36 -> 1104691 | C38: 1104690.42 | D38: ='[2]Лист1 (3)'!AE36 -> 381734 | E38: 381734.38 | F38: =[3]Лист1!R36 -> 0 | G38: 0 | H38: 0 | I38: =[4]Лист1!X36 -> 0 | J38: 0 | K38: =[5]Лист1!V36 -> 156822 | L38: 156821.16 | M38: ='[6]2240'!AB36 -> 4530 | N38: 4352.96 | O38: 177.04 | P38: =[7]Лист1!AD36 -> 200 | Q38: 0 | R38: =[8]Лист1!AG36 -> 302787 | S38: 265206.84 | T38: 37580.16 | U38: =[9]Лист1!AA36 -> 9969 | V38: 9969.4 | W38: =[10]Лист1!AD36 -> 45134 | X38: 45133.53 | Y38: =[11]Лист1!S36 -> 5391 | Z38: 5391.05 | AA38: =[12]Лист1!S36 -> 103 | AB38: 102.61 | AC38: 2011361 | AD38: 1973402.35
A39: 33 | B39: ='[1]Лист1 (3)'!AF37 -> 1527110 | C39: 1527109.81 | D39: ='[2]Лист1 (3)'!AE37 -> 542173 | E39: 542173.18 | F39: =[3]Лист1!R37 -> 0 | G39: 0 | H39: 0 | I39: =[4]Лист1!X37 -> 300 | J39: 300 | K39: =[5]Лист1!V37 -> 232328 | L39: 232327.53 | M39: ='[6]2240'!AB37 -> 11650 | N39: 6972.42 | O39: 4677.58 | P39: =[7]Лист1!AD37 -> 0 | Q39: 0 | R39: =[8]Лист1!AG37 -> 538175 | S39: 478465.97 | T39: 59709.03 | U39: =[9]Лист1!AA37 -> 14540 | V39: 14539.59 | W39: =[10]Лист1!AD37 -> 63256 | X39: 63255.62 | Y39: =[11]Лист1!S37 -> 0 | Z39: 0 | AA39: =[12]Лист1!S37 -> 0 | AC39: 2929532 | AD39: 2865144.12
A40: 34 | B40: ='[1]Лист1 (3)'!AF38 -> 1322729 | C40: 1322729.19 | D40: ='[2]Лист1 (3)'!AE38 -> 472882 | E40: 472358.85 | F40: =[3]Лист1!R38 -> 0 | G40: 0 | H40: 0 | I40: =[4]Лист1!X38 -> 400 | J40: 400 | K40: 159354 | L40: 159354.07 | M40: ='[6]2240'!AB38 -> 15080 | N40: 9565.13 | O40: 5514.87 | P40: =[7]Лист1!AD38 -> 275 | Q40: 0 | R40: =[8]Лист1!AG38 -> 431012 | S40: 378911.6 | T40: 52100.4 | U40: =[9]Лист1!AA38 -> 8829 | V40: 8828.74 | W40: =[10]Лист1!AD38 -> 51770 | X40: 51770.36 | Y40: =[11]Лист1!S38 -> 0 | Z40: 0 | AA40: =[12]Лист1!S38 -> 14 | AC40: 2462345 | AD40: 2403917.94
A41: 35 | B41: ='[1]Лист1 (3)'!AF39 -> 1274662 | C41: 1274662.43 | D41: ='[2]Лист1 (3)'!AE39 -> 461243 | E41: 461243.21 | F41: =[3]Лист1!R39 -> 0 | G41: 0 | H41: 0 | I41: =[4]Лист1!X39 -> 500 | J41: 500 | K41: =[5]Лист1!V39 -> 197260 | L41: 197259.57 | M41: ='[6]2240'!AB39 -> 9860 | N41: 5779.87 | O41: 4080.13 | P41: =[7]Лист1!AD39 -> 0 | Q41: 0 | R41: =[8]Лист1!AG39 -> 337315 | S41: 297578.81 | T41: 39736.19 | U41: =[9]Лист1!AA39 -> 9945 | V41: 9944.59 | W41: =[10]Лист1!AD39 -> 38117 | X41: 38117.45 | Y41: =[11]Лист1!S39 -> 0 | Z41: 0 | AA41: =[12]Лист1!S39 -> 0 | AC41: 2328902 | AD41: 2285085.93
A42: 37 | B42: ='[1]Лист1 (3)'!AF40 -> 1405268 | C42: 1405267.7 | D42: ='[2]Лист1 (3)'!AE40 -> 506412 | E42: 506412.32 | F42: =[3]Лист1!R40 -> 0 | G42: 0 | H42: 0 | I42: =[4]Лист1!X40 -> 550 | J42: 550 | K42: 214977 | L42: 214977.67 | M42: ='[6]2240'!AB40 -> 5440 | N42: 5268.97 | O42: 171.03 | P42: =[7]Лист1!AD40 -> 0 | Q42: 0 | R42: =[8]Лист1!AG40 -> 401299 | S42: 347272.36 | T42: 54026.64 | U42: =[9]Лист1!AA40 -> 20150 | V42: 20150.41 | W42: =[10]Лист1!AD40 -> 53274 | X42: 53274.42 | Y42: =[11]Лист1!S40 -> 0 | Z42: 0 | AA42: =[12]Лист1!S40 -> 0 | AC42: 2607370 | AD42: 2553173.85
A43: 38 | B43: ='[1]Лист1 (3)'!AF41 -> 1414940 | C43: 1414940.34 | D43: ='[2]Лист1 (3)'!AE41 -> 505726 | E43: 505725.86 | F43: 22623 | G43: 2601 | H43: 20022 | I43: =[4]Лист1!X41 -> 0 | J43: 0 | K43: =[5]Лист1!V41 -> 194269 | L43: 194268.41 | M43: ='[6]2240'!AB41 -> 11740 | N43: 6327.05 | O43: 5412.95 | P43: =[7]Лист1!AD41 -> 220 | Q43: 218.4 | R43: =[8]Лист1!AG41 -> 564130 | S43: 500546.3 | T43: 63583.7 | U43: =[9]Лист1!AA41 -> 7334 | V43: 7334.35 | W43: =[10]Лист1!AD41 -> 52969 | X43: 52969.36 | Y43: =[11]Лист1!S41 -> 0 | Z43: 0 | AA43: =[12]Лист1!S41 -> 0 | AC43: 2773951 | AD43: 2684931.07
A44: 39 | B44: ='[1]Лист1 (3)'!AF42 -> 1010873 | C44: 1010873.13 | D44: ='[2]Лист1 (3)'!AE42 -> 367627 | E44: 367627.38 | F44: =[3]Лист1!R42 -> 0 | G44: 0 | H44: 0 | I44: =[4]Лист1!X42 -> 400 | J44: 400 | K44: =[5]Лист1!V42 -> 150976 | L44: 150975.31 | M44: ='[6]2240'!AB42 -> 9400 | N44: 9227.46 | O44: 172.54 | P44: =[7]Лист1!AD42 -> 0 | Q44: 0 | R44: =[8]Лист1!AG42 -> 279514 | S44: 245020.02 | T44: 34493.98 | U44: =[9]Лист1!AA42 -> 6820 | V44: 6820.19 | W44: =[10]Лист1!AD42 -> 47556 | X44: 47555.47 | Y44: =[11]Лист1!S42 -> 0 | Z44: 0 | AA44: =[12]Лист1!S42 -> 0 | AC44: 1873166 | AD44: 1838498.96
A45: 40 | B45: ='[1]Лист1 (3)'!AF43 -> 1040788 | C45: 1040788.03 | D45: ='[2]Лист1 (3)'!AE43 -> 374249 | E45: 374249.18 | F45: =[3]Лист1!R43 -> 163715 | G45: 163714.37 | H45: 0.63 | I45: =[4]Лист1!X43 -> 450 | J45: 450 | K45: 121681 | L45: 121680.41 | M45: ='[6]2240'!AB43 -> 8285 | N45: 7391.2 | O45: 893.8 | P45: =[7]Лист1!AD43 -> 90 | Q45: 0 | R45: =[8]Лист1!AG43 -> 254051 | S45: 203879.61 | T45: 50171.39 | U45: =[9]Лист1!AA43 -> 7634 | V45: 7633.73 | W45: =[10]Лист1!AD43 -> 28495 | X45: 28494.94 | Y45: =[11]Лист1!S43 -> 0 | Z45: 0 | AA45: =[12]Лист1!S43 -> 0 | AC45: 1999438 | AD45: 1948281.47
A46: Разом | B46: =SUM(B7:B45) -> 51101700 | C46: 51101699.9 | D46: 18097086 | E46: 18096565.88 | F46: 222333 | G46: 202308.77 | H46: 20024.23 | I46: 15045 | J46: 15045 | K46: 7441775 | L46: 7441761.56 | M46: 510015 | N46: 385541.29 | O46: 124473.71 | P46: 4300 | Q46: 4262.27 | R46: 16692385 | S46: 14612255.66 | T46: 2080129.34 | U46: 463308 | V46: 463307.23 | W46: 1856013 | X46: 1856012.37 | Y46: 435776 | Z46: 435775.9 | AA46: 1464 | AB46: 1444.08 | AC46: 96841200 | AD46: 94615979.91
B49: Примітка: заборгованість станом на 31.12.2013р,а саме:
B50: КЕКВ 2210 Предмети, матеріали, обладнання та інвентар | E50: 20023.75
B51: КЕКВ 2240 Оплата послуг (крім комунальних) | E51: 124473.71
B52: КЕКВ 2271 Оплата теплопостачання | E52: 2080124.19

Sheet 2014 рік
B1: Інформація про використання коштів із місцевого бюджету за 2014 рік по загальному фону, КФК 070101 "Дошкільні заклади освіти" .
A2: № днз | B2: КЕКВ 2111 Заробітна плата | D2: КЕКВ 2120 Нарахування на оплату праці | F2: КЕКВ 2210 Предмети, матеріали, обладнання та інвентар | H2: КЕКВ 2220 Медикаменти та перев'язувальні матеріали | J2: КЕКВ 2230 Продукти харчування | L2: КЕКВ 2240 Оплата послуг (крім комунальних) | O2: КЕКВ 2250 Видатки на відрядження | Q2: КЕКВ 2271 Оплата теплопостачання | S2: КЕКВ 2272 Оплата водопостачання та водовідведення | U2: КЕКВ 2273 Оплата електроенергії | W2: КЕКВ 2274 Оплата природного газу | Y2: КЕКВ 2282 Окремі заходи по реалізації(регіональних)програм,не віднесені до заходів розвитку | AA2: КЕКВ 2730 Інші виплати населенню | AC2: КЕКВ 2800 Інші видатки | AE2: Всього
B3: Затверджено | C3: Використано | D3: Затверджено | E3: Використано | F3: Затверджено | G3: Використано | H3: Затверджено | I3: Використано | J3: Затверджено | K3: Використано | L3: Затверджено | M3: Використано | N3: Заборгованість станом на 31.12.2014р. | O3: Затверджено | P3: Використано | Q3: Затверджено | R3: Використано | S3: Затверджено | T3: Використано | U3: Затверджено | V3: Використано | W3: Затверджено | X3: Використано | Y3: Затверджено | Z3: Використано | AA3: Затверджено | AB3: Використано | AC3: Затверджено | AD3: Використано | AE3: Затверджено | AF3: Використано
B4: 1 | D4: =B4+1 -> 2 | F4: =D4+1 -> 3 | H4: =F4+1 -> 4 | J4: =H4+1 -> 5 | L4: =J4+1 -> 6 | O4: =L4+1 -> 7 | Q4: =O4+1 -> 8 | S4: =Q4+1 -> 9 | U4: =S4+1 -> 10 | W4: =U4+1 -> 11 | Y4: =W4+1 -> 12 | AA4: =Y4+1 -> 13 | AC4: =AA4+1 -> 14 | AE4: =AC4+1 -> 15
A5: 1 | B5: 1711090 | C5: 1711086.16 | D5: 612431 | E5: 612430.93 | F5: 0 | G5: 0 | H5: 0 | I5: 0 | J5: 214250 | K5: 214249.42 | L5: 6788 | M5: 6393.32 | N5: =L5-M5 -> 394.68 | O5: 0 | P5: 0 | Q5: 326561 | R5: 326560.01 | S5: 9871 | T5: 9870.16 | U5: 56489 | V5: 56488.17 | W5: 0 | X5: 0 | Y5: 2960 | Z5: 2960 | AA5: 0 | AB5: 0 | AC5: 0 | AD5: 0 | AE5: =B5+D5+F5+H5+J5+L5+O5+Q5+S5+U5+W5+Y5+AA5+AC5 -> 2940440 | AF5: 2940038.17
A6: 2 | B6: 786030 | C6: 786026.75 | D6: 286827 | E6: 286826.95 | F6: 0 | G6: 0 | H6: 0 | I6: 0 | J6: 148077 | K6: 148076.33 | L6: 4454 | M6: 4358.18 | N6: =L6-M6 -> 95.82 | O6: 0 | P6: 0 | Q6: 188140 | R6: 188139.32 | S6: 10021 | T6: 10020.31 | U6: 47551 | V6: 47550.07 | W6: 0 | X6: 0 | Y6: 2960 | Z6: 2960 | AA6: 0 | AB6: 0 | AC6: 0 | AD6: 0 | AE6: 1474060 | AF6: 1473957.91
A7: 3 | B7: 1651832 | C7: 1651831.3 | D7: 594570 | E7: 594568.85 | F7: 0 | G7: 0 | H7: 0 | I7: 0 | J7: 201806 | K7: 201805.51 | L7: 6149 | M7: 5754.46 | N7: 394.54 | O7: 200 | P7: 186.75 | Q7: 543177 | R7: 543176.44 | S7: 15810 | T7: 15808.95 | U7: 55457 | V7: 55456.77 | W7: 0 | X7: 0 | Y7: 2960 | Z7: 2960 | AA7: 0 | AB7: 0 | AC7: 0 | AD7: 0 | AE7: 3071961 | AF7: 3071549.03
A8: 4 | B8: 1741890 | C8: 1741886.03 | D8: 619727 | E8: 619726.44 | F8: 0 | G8: 0 | H8: 0 | I8: 0 | J8: 286145 | K8: 286144.67 | L8: 4950 | M8: 4854.96 | N8: 95.04 | O8: 0 | P8: 0 | Q8: 489374 | R8: 489374 | S8: 26619 | T8: 26618.41 | U8: 58559 | V8: 58558.98 | W8: 0 | X8: 0 | Y8: 2960 | Z8: 2960 | AA8: 0 | AB8: 0 | AC8: 0 | AD8: 0 | AE8: 3230224 | AF8: 3230123.49
A9: 5 | B9: 1835094 | C9: 1835093.63 | D9: 665310 | E9: 665309.23 | F9: 0 | G9: 0 | H9: 0 | I9: 0 | J9: 279732 | K9: 279731.29 | L9: 7080 | M9: 6985.07 | N9: 94.93 | O9: 0 | P9: 0 | Q9: 396713 | R9: 396712.19 | S9: 16967 | T9: 16966.8 | U9: 59413 | V9: 59412.81 | W9: 0 | X9: 0 | Y9: 2960 | Z9: 2960 | AA9: 0 | AB9: 0 | AC9: 0 | AD9: 0 | AE9: 3263269 | AF9: 3263171.02
A10: 6 | B10: 1537431 | C10: 1537430.58 | D10: 542553 | E10: 542552.23 | F10: 0 | G10: 0 | H10: 0 | I10: 0 | J10: 220504 | K10: 220503.86 | L10: 5831 | M10: 5736.72 | N10: 94.28 | O10: 0 | P10: 0 | Q10: 437929 | R10: 437928.27 | S10: 17308 | T10: 17307.51 | U10: 80931 | V10: 80930.7 | W10: 0 | X10: 0 | Y10: 2960 | Z10: 2960 | AA10: 0 | AB10: 0 | AC10: 123 | AD10: 122.81 | AE10: 2845570 | AF10: 2845472.68
A11: 7 | B11: 1514804 | C11: 1514803.46 | D11: 508091 | E11: 508090.42 | F11: 0 | G11: 0 | H11: 0 | I11: 0 | J11: 244146 | K11: 244145.69 | L11: 5590 | M11: 4895.03 | N11: 694.97 | O11: 0 | P11: 0 | Q11: 539115 | R11: 539114.32 | S11: 19079 | T11: 19078 | U11: 71740 | V11: 71739.74 | W11: 0 | X11: 0 | Y11: 2960 | Z11: 2960 | AA11: 850 | AB11: 847.21 | AC11: 0 | AD11: 0 | AE11: 2906375 | AF11: 2905673.87
A12: 8 | B12: 841462 | C12: 841461.32 | D12: 284208 | E12: 284207.18 | F12: 0 | G12: 0 | H12: 0 | I12: 0 | J12: 126074 | K12: 126073.69 | L12: 4675 | M12: 4279.19 | N12: 395.81 | O12: 0 | P12: 0 | Q12: 154631 | R12: 154630.13 | S12: 10879 | T12: 10878.86 | U12: 55933 | V12: 55932.5 | W12: 0 | X12: 0 | Y12: 2960 | Z12: 2960 | AA12: 0 | AB12: 0 | AC12: 0 | AD12: 0 | AE12: 1480822 | AF12: 1480422.87
A13: 9 | B13: 1894000 | C13: 1893999.8 | D13: 679682 | E13: 679681.2 | F13: 0 | G13: 0 | H13: 0 | I13: 0 | J13: 194368 | K13: 194367.01 | L13: 7278 | M13: 7182.99 | N13: 95.01 | O13: 0 | P13: 0 | Q13: 573269 | R13: 573268.91 | S13: 18515 | T13: 18514.27 | U13: 61980 | V13: 61979.23 | W13: 0 | X13: 0 | Y13: 2960 | Z13: 2960 | AA13: 0 | AB13: 0 | AC13: 0 | AD13: 0 | AE13: 3432052 | AF13: 3431953.41
A14: 10 | B14: 1789805 | C14: 1789804.37 | D14: 669356 | E14: 669356 | F14: 0 | G14: 0 | H14: 0 | I14: 0 | J14: 321002 | K14: 321001.22 | L14: 8299 | M14: 8203.82 | N14: 95.18 | O14: 0 | P14: 0 | Q14: 528251 | R14: 528250.28 | S14: 25028 | T14: 25027.67 | U14: 83310 | V14: 83309.16 | W14: 0 | X14: 0 | Y14: 0 | Z14: 0 | AA14: 0 | AB14: 0 | AC14: 0 | AD14: 0 | AE14: 3425051 | AF14: 3424952.52
A15: 11 | B15: 1707052 | C15: 1707051.92 | D15: 615075 | E15: 615074.68 | F15: 20076 | G15: 20076 | H15: 0 | I15: 0 | J15: 281314 | K15: 281313.87 | L15: 11602 | M15: 11207.45 | N15: 394.55 | O15: 0 | P15: 0 | Q15: 542026 | R15: 542025.55 | S15: 23938 | T15: 23937.01 | U15: 91831 | V15: 91830.53 | W15: 0 | X15: 0 | Y15: 2960 | Z15: 2960 | AA15: 0 | AB15: 0 | AC15: 0 | AD15: 0 | AE15: 3295874 | AF15: 3295477.01
A16: 12 | B16: 639331 | C16: 639330.33 | D16: 222977 | E16: 222976.02 | F16: 0 | G16: 0 | H16: 0 | I16: 0 | J16: 84096 | K16: 84095.75 | L16: 7595 | M16: 7500.58 | N16: 94.42 | O16: 0 | P16: 0 | Q16: 0 | R16: 0 | S16: 4175 | T16: 4174.64 | U16: 13531 | V16: 13530.9 | W16: 73368 | X16: 73367.43 | Y16: 2960 | Z16: 2960 | AA16: 0 | AB16: 0 | AC16: 60 | AD16: 47.12 | AE16: 1048093 | AF16: 1047982.77
A17: 13 | B17: 1678183 | C17: 1678182.57 | D17: 587720 | E17: 587719.02 | F17: 0 | G17: 0 | H17: 0 | I17: 0 | J17: 179042 | K17: 179041.3 | L17: 13647 | M17: 10652.78 | N17: 2994.22 | O17: 0 | P17: 0 | Q17: 502936 | R17: 502935.33 | S17: 51312 | T17: 51311.35 | U17: 60085 | V17: 60084.6 | W17: 0 | X17: 0 | Y17: 2960 | Z17: 2960 | AA17: 0 | AB17: 0 | AC17: 0 | AD17: 0 | AE17: 3075885 | AF17: 3072886.95
A18: 14 | B18: 1749402 | C18: 1749401.71 | D18: 642003 | E18: 642002.19 | F18: 0 | G18: 0 | H18: 0 | I18: 0 | J18: 230243 | K18: 230242.64 | L18: 5682 | M18: 5286.97 | N18: 395.03 | O18: 0 | P18: 0 | Q18: 402593 | R18: 402592.74 | S18: 26549 | T18: 26548.27 | U18: 52431 | V18: 52430.53 | W18: 0 | X18: 0 | Y18: 2960 | Z18: 2960 | AA18: 0 | AB18: 0 | AC18: 0 | AD18: 0 | AE18: 3111863 | AF18: 3111465.05
A19: 15 | B19: 509423 | C19: 509422.63 | D19: 184106 | E19: 184105.63 | F19: 0 | G19: 0 | H19: 0 | I19: 0 | J19: 54793 | K19: 54792.46 | L19: 6660 | M19: 6564.81 | N19: 95.19 | O19: 0 | P19: 0 | Q19: 56506 | R19: 56505.51 | S19: 3456 | T19: 3455.89 | U19: 7473 | V19: 7472.82 | W19: 7676 | X19: 7675.63 | Y19: 2960 | Z19: 2960 | AA19: 0 | AB19: 0 | AC19: 0 | AD19: 0 | AE19: 833053 | AF19: 832955.38
A20: 16 | B20: 910340 | C20: 910339.17 | D20: 330372 | E20: 330371.47 | F20: 0 | G20: 0 | H20: 0 | I20: 0 | J20: 130380 | K20: 130379.78 | L20: 8551 | M20: 8155.52 | N20: 395.48 | O20: 0 | P20: 0 | Q20: 164910 | R20: 164909.78 | S20: 13710 | T20: 13709.61 | U20: 33599 | V20: 33598.9 | W20: 0 | X20: 0 | Y20: 2960 | Z20: 2960 | AA20: 0 | AB20: 0 | AC20: 0 | AD20: 0 | AE20: 1594822 | AF20: 1594424.23
A21: 17 | B21: 775740 | C21: 775738.13 | D21: 280758 | E21: 280757.34 | F21: 0 | G21: 0 | H21: 0 | I21: 0 | J21: 124651 | K21: 124650.97 | L21: 6700 | M21: 5903.08 | N21: 796.92 | O21: 0 | P21: 0 | Q21: 207777 | R21: 207776.22 | S21: 10882 | T21: 10881.4 | U21: 11336 | V21: 11335.94 | W21: 70824 | X21: 70823.03 | Y21: 2960 | Z21: 2960 | AA21: 0 | AB21: 0 | AC21: 0 | AD21: 0 | AE21: 1491628 | AF21: 1490826.11
A22: 18 | B22: 907780 | C22: 907776.68 | D22: 325530 | E22: 325529.55 | F22: 0 | G22: 0 | H22: 0 | I22: 0 | J22: 144417 | K22: 144416.06 | L22: 26955 | M22: 25009.99 | N22: 1945.01 | O22: 0 | P22: 0 | Q22: 0 | R22: 0 | S22: 11475 | T22: 11474.94 | U22: 53145 | V22: 53144.29 | W22: 149970 | X22: 149969.51 | Y22: 2960 | Z22: 2960 | AA22: 0 | AB22: 0 | AC22: 140 | AD22: 97.94 | AE22: 1622372 | AF22: 1620378.96
A23: 19 | B23: 1582020 | C23: 1582015.07 | D23: 555468 | E23: 555467.93 | F23: 0 | G23: 0 | H23: 0 | I23: 0 | J23: 249833 | K23: 249832.68 | L23: 7181 | M23: 7086.14 | N23: 94.86 | O23: 0 | P23: 0 | Q23: 270405 | R23: 270404.55 | S23: 22308 | T23: 22307.03 | U23: 91383 | V23: 91382.38 | W23: 0 | X23: 0 | Y23: 2960 | Z23: 2960 | AA23: 0 | AB23: 0 | AC23: 0 | AD23: 0 | AE23: 2781558 | AF23: 2781455.78
A24: 20 | B24: 1369882 | C24: 1369881.97 | D24: 488146 | E24: 488145.47 | F24: 0 | G24: 0 | H24: 0 | I24: 0 | J24: 197898 | K24: 197897.12 | L24: 25022 | M24: 24926.87 | N24: 95.13 | O24: 0 | P24: 0 | Q24: 377721 | R24: 377720.17 | S24: 12151 | T24: 12150.41 | U24: 45379 | V24: 45378.03 | W24: 0 | X24: 0 | Y24: 2960 | Z24: 2960 | AA24: 0 | AB24: 0 | AC24: 0 | AD24: 0 | AE24: 2519159 | AF24: 2519060.04
A25: 21 | B25: 2032445 | C25: 2032444.25 | D25: 702411 | E25: 702410.88 | F25: 0 | G25: 0 | H25: 0 | I25: 0 | J25: 209623 | K25: 209622.12 | L25: 5908 | M25: 5513.3 | N25: 394.7 | O25: 0 | P25: 0 | Q25: 439370 | R25: 439369.61 | S25: 18937 | T25: 18936.22 | U25: 61411 | V25: 61410.86 | W25: 0 | X25: 0 | Y25: 0 | Z25: 0 | AA25: 0 | AB25: 0 | AC25: 0 | AD25: 0 | AE25: 3470105 | AF25: 3469707.24
A26: 22 | B26: 1530742 | C26: 1530741.4 | D26: 543768 | E26: 543767.89 | F26: 0 | G26: 0 | H26: 0 | I26: 0 | J26: 205459 | K26: 205458.4 | L26: 5636 | M26: 5540.48 | N26: 95.52 | O26: 0 | P26: 0 | Q26: 330568 | R26: 330567.49 | S26: 15422 | T26: 15421.54 | U26: 60973 | V26: 60972.3 | W26: 0 | X26: 0 | Y26: 2960 | Z26: 2960 | AA26: 0 | AB26: 0 | AC26: 0 | AD26: 0 | AE26: 2695528 | AF26: 2695429.5
A27: 23 | B27: 1571852 | C27: 1571851.97 | D27: 500972 | E27: 500971.8 | F27: 0 | G27: 0 | H27: 0 | I27: 0 | J27: 185471 | K27: 185470.79 | L27: 7752 | M27: 5236.62 | N27: 2515.38 | O27: 0 | P27: 0 | Q27: 361337 | R27: 361336.48 | S27: 21479 | T27: 21478.59 | U27: 46294 | V27: 46293.92 | W27: 0 | X27: 0 | Y27: 2960 | Z27: 2960 | AA27: 0 | AB27: 0 | AC27: 0 | AD27: 0 | AE27: 2698117 | AF27: 2695600.17
A28: 24 | B28: 1491943 | C28: 1491942.69 | D28: 524786 | E28: 524785.66 | F28: 0 | G28: 0 | H28: 400 | I28: 400 | J28: 220609 | K28: 220608.68 | L28: 5836 | M28: 5741.68 | N28: 94.32 | O28: 0 | P28: 0 | Q28: 343761 | R28: 343760.87 | S28: 14415 | T28: 14414.34 | U28: 41488 | V28: 41487.49 | W28: 0 | X28: 0 | Y28: 0 | Z28: 0 | AA28: 0 | AB28: 0 | AC28: 0 | AD28: 0 | AE28: 2643238 | AF28: 2643141.41
A29: 25 | B29: 864480 | C29: 864479.25 | D29: 301690 | E29: 301689.21 | F29: 0 | G29: 0 | H29: 0 | I29: 0 | J29: 140201 | K29: 140200.79 | L29: 4170 | M29: 4075.44 | N29: 94.56 | O29: 0 | P29: 0 | Q29: 232714 | R29: 232713.6 | S29: 14661 | T29: 14660.61 | U29: 9822 | V29: 9821.87 | W29: 19639 | X29: 19638.8 | Y29: 2960 | Z29: 2960 | AA29: 0 | AB29: 0 | AC29: 123 | AD29: 122.81 | AE29: 1590460 | AF29: 1590362.38
A30: 26 | B30: 852975 | C30: 852974.13 | D30: 308541 | E30: 308540.18 | F30: 0 | G30: 0 | H30: 0 | I30: 0 | J30: 138783 | K30: 138782.21 | L30: 6962 | M30: 6867.49 | N30: 94.51 | O30: 0 | P30: 0 | Q30: 155103 | R30: 155102.09 | S30: 13390 | T30: 13389.42 | U30: 9508 | V30: 9507.66 | W30: 35434 | X30: 35433.72 | Y30: 2960 | Z30: 2960 | AA30: 0 | AB30: 0 | AC30: 0 | AD30: 0 | AE30: 1523656 | AF30: 1523556.9
A31: 27 | B31: 1510453 | C31: 1510452.02 | D31: 545169 | E31: 545168.14 | F31: 0 | G31: 0 | H31: 0 | I31: 0 | J31: 242972 | K31: 242971.61 | L31: 5135 | M31: 4739.57 | N31: 395.43 | O31: 0 | P31: 0 | Q31: 408204 | R31: 408203.81 | S31: 11626 | T31: 11625.99 | U31: 56910 | V31: 56909.54 | W31: 0 | X31: 0 | Y31: 2960 | Z31: 2960 | AA31: 0 | AB31: 0 | AC31: 0 | AD31: 0 | AE31: 2783429 | AF31: 2783030.68
A32: 28 | B32: 1607890 | C32: 1607888.97 | D32: 574743 | E32: 574742.46 | F32: 0 | G32: 0 | H32: 0 | I32: 0 | J32: 83603 | K32: 83602.89 | L32: 6116 | M32: 6021.46 | N32: 94.54 | O32: 0 | P32: 0 | Q32: 175902 | R32: 175901.13 | S32: 5513 | T32: 5512.36 | U32: 8695 | V32: 8694.28 | W32: 20726 | X32: 20725.44 | Y32: 2960 | Z32: 2960 | AA32: 0 | AB32: 0 | AC32: 0 | AD32: 0 | AE32: 2486148 | AF32: 2486048.99
A33: 29 | B33: 1065920 | C33: 1065918.59 | D33: 381196 | E33: 381195.34 | F33: 0 | G33: 0 | H33: 0 | I33: 0 | J33: 230949 | K33: 230948.06 | L33: 4789 | M33: 4694.31 | N33: 94.69 | O33: 0 | P33: 0 | Q33: 161416 | R33: 161415.11 | S33: 7795 | T33: 7794.77 | U33: 25668 | V33: 25667.15 | W33: 7685 | X33: 7679.9 | Y33: 0 | Z33: 0 | AA33: 0 | AB33: 0 | AC33: 0 | AD33: 0 | AE33: 1885418 | AF33: 1885313.23
A34: 30 | B34: 1478593 | C34: 1478592.32 | D34: 520684 | E34: 520683.74 | F34: 0 | G34: 0 | H34: 0 | I34: 0 | J34: 194609 | K34: 194608.89 | L34: 7510 | M34: 7115.85 | N34: 394.15 | O34: 0 | P34: 0 | Q34: 324442 | R34: 324441.89 | S34: 14233 | T34: 14232.47 | U34: 44823 | V34: 44822.09 | W34: 0 | X34: 0 | Y34: 0 | Z34: 0 | AA34: 0 | AB34: 0 | AC34: 0 | AD34: 0 | AE34: 2584894 | AF34: 2584497.25
A35: 31 | B35: 1385121 | C35: 1385120.75 | D35: 498898 | E35: 498897.32 | F35: 0 | G35: 0 | H35: 0 | I35: 0 | J35: 188743 | K35: 188742.6 | L35: 6667 | M35: 5841.63 | N35: 825.37 | O35: 0 | P35: 0 | Q35: 460181 | R35: 460180.5 | S35: 13535 | T35: 13534.6 | U35: 54462 | V35: 54461.84 | W35: 0 | X35: 0 | Y35: 0 | Z35: 0 | AA35: 0 | AB35: 0 | AC35: 0 | AD35: 0 | AE35: 2607607 | AF35: 2606779.24
A36: 32 | B36: 1153353 | C36: 1153352.69 | D36: 403850 | E36: 403847.34 | F36: 0 | G36: 0 | H36: 0 | I36: 0 | J36: 160047 | K36: 160046.97 | L36: 4413 | M36: 4317.78 | N36: 95.22 | O36: 0 | P36: 0 | Q36: 255207 | R36: 255206.95 | S36: 11570 | T36: 11569.55 | U36: 44165 | V36: 44164.17 | W36: 5028 | X36: 5017.49 | Y36: 0 | Z36: 0 | AA36: 0 | AB36: 0 | AC36: 0 | AD36: 0 | AE36: 2037633 | AF36: 2037522.94
A37: 33 | B37: 1594660 | C37: 1594656.45 | D37: 579320 | E37: 579316.58 | F37: 0 | G37: 0 | H37: 0 | I37: 0 | J37: 247909 | K37: 247908.45 | L37: 6364 | M37: 6269.76 | N37: 94.24 | O37: 0 | P37: 0 | Q37: 387190 | R37: 387189.78 | S37: 17925 | T37: 17924.96 | U37: 62190 | V37: 62189.63 | W37: 0 | X37: 0 | Y37: 0 | Z37: 0 | AA37: 0 | AB37: 0 | AC37: 0 | AD37: 0 | AE37: 2895558 | AF37: 2895455.61
A38: 34 | B38: 1392292 | C38: 1392291.48 | D38: 492450 | E38: 492446.71 | F38: 0 | G38: 0 | H38: 0 | I38: 0 | J38: 159011 | K38: 159010.83 | L38: 11015 | M38: 10919.11 | N38: 95.89 | O38: 0 | P38: 0 | Q38: 309667 | R38: 309666.07 | S38: 9623 | T38: 9622.1 | U38: 51158 | V38: 51157.96 | W38: 0 | X38: 0 | Y38: 0 | Z38: 0 | AA38: 0 | AB38: 0 | AC38: 0 | AD38: 0 | AE38: 2425216 | AF38: 2425114.26
A39: 35 | B39: 1371200 | C39: 1371198.97 | D39: 498140 | E39: 498139.29 | F39: 0 | G39: 0 | H39: 0 | I39: 0 | J39: 179270 | K39: 179269.07 | L39: 8535 | M39: 8439.02 | N39: 95.98 | O39: 0 | P39: 0 | Q39: 254190 | R39: 254189.35 | S39: 11795 | T39: 11794.3 | U39: 34023 | V39: 34022.44 | W39: 0 | X39: 0 | Y39: 0 | Z39: 0 | AA39: 0 | AB39: 0 | AC39: 0 | AD39: 0 | AE39: 2357153 | AF39: 2357052.44
A40: 37 | B40: 1496715 | C40: 1496714.79 | D40: 539938 | E40: 539937.12 | F40: 0 | G40: 0 | H40: 0 | I40: 0 | J40: 211212 | K40: 211211.22 | L40: 7167 | M40: 7071.94 | N40: 95.06 | O40: 0 | P40: 0 | Q40: 300281 | R40: 300280.9 | S40: 22398 | T40: 22397.91 | U40: 48680 | V40: 48679.93 | W40: 0 | X40: 0 | Y40: 0 | Z40: 0 | AA40: 0 | AB40: 0 | AC40: 0 | AD40: 0 | AE40: 2626391 | AF40: 2626293.81
A41: 38 | B41: 1603111 | C41: 1603110.28 | D41: 587242 | E41: 587241.37 | F41: 20024 | G41: 20023.75 | H41: 0 | I41: 0 | J41: 181155 | K41: 181154.73 | L41: 6120 | M41: 6025.48 | N41: 94.52 | O41: 0 | P41: 0 | Q41: 425815 | R41: 425814.58 | S41: 13739 | T41: 13738.42 | U41: 47275 | V41: 47274.87 | W41: 0 | X41: 0 | Y41: 0 | Z41: 0 | AA41: 0 | AB41: 0 | AC41: 0 | AD41: 0 | AE41: 2884481 | AF41: 2884383.48
A42: 39 | B42: 1061610 | C42: 1061607.06 | D42: 387950 | E42: 387948.34 | F42: 0 | G42: 0 | H42: 0 | I42: 0 | J42: 121750 | K42: 121749.35 | L42: 7007 | M42: 6612.79 | N42: 394.21 | O42: 0 | P42: 0 | Q42: 209925 | R42: 209924.11 | S42: 7585 | T42: 7584.52 | U42: 42055 | V42: 42054.94 | W42: 0 | X42: 0 | Y42: 0 | Z42: 0 | AA42: 0 | AB42: 0 | AC42: 0 | AD42: 0 | AE42: 1837882 | AF42: 1837481.11
A43: 40 | B43: 1265224 | C43: 1265202.39 | D43: 458222 | E43: 458221.05 | F43: 0 | G43: 0 | H43: 0 | I43: 0 | J43: 207053 | K43: 196394.94 | L43: 7146 | M43: 6824.55 | N43: 321.45 | O43: 0 | P43: 0 | Q43: 360646 | R43: 284875.52 | S43: 15406 | T43: 15361.75 | U43: 73294 | V43: 73288.86 | W43: 0 | X43: 0 | Y43: 0 | Z43: 0 | AA43: 0 | AB43: 0 | AC43: 0 | AD43: 0 | AE43: 2386991 | AF43: 2300169.06
A44: Разом | B44: =SUM(B5:B43) -> 53463170 | C44: =C5+C6+C7+C8+C9+C10+C11+C12+C13+C14+C15+C16+C17+C18+C19+C20+C21+C22+C23+C24+C25+C26+C27+C28+C29+C30+C31+C32+C33+C34+C35+C36+C37+C38+C39+C40+C41+C42+C43 -> 53463104.03 | D44: =D5+D6+D7+D8+D9+D10+D11+D12+D13+D14+D15+D16+D17+D18+D19+D20+D21+D22+D23+D24+D25+D26+D27+D28+D29+D30+D31+D32+D33+D34+D35+D36+D37+D38+D39+D40+D41+D42+D43 -> 19044880 | E44: =SUM(E5:E43) -> 19044849.15 | F44: 40100 | G44: 40099.75 | H44: 400 | I44: 400 | J44: 7421200 | K44: 7410523.92 | L44: 304937 | M44: 288806.19 | N44: 16130.81 | O44: 200 | P44: 186.75 | Q44: 12597953 | R44: 12522163.56 | S44: 611100 | T44: 611035.91 | U44: 1914450 | V44: 1914428.85 | W44: 390350 | X44: 390330.95 | Y44: 74000 | Z44: 74000 | AA44: 850 | AB44: 847.21 | AC44: 446 | AD44: 390.68 | AE44: =SUM(AE5:AE43) -> 95864036 | AF44: =SUM(AF5:AF43) -> 95761166.95
D47: Примітка: заборгованість станом на 31.12.2014р,а саме:
B48: КЕКВ 2240 Оплата послуг (крім комунальних) | G48: 16076.93

Sheet 2015 рік
B1: Інформація про використання коштів із місцевого бюджету за 10-ть місяців 2015 року по загальному фону, КФК 070101 "Дошкільні заклади освіти" .
A2: № днз | B2: КЕКВ 2111 Заробітна плата | D2: КЕКВ 2120 Нарахування на оплату праці | F2: КЕКВ 2210 Предмети, матеріали, обладнання та інвентар | H2: КЕКВ 2220 Медикаменти та перев'язувальні матеріали | J2: КЕКВ 2230 Продукти харчування | L2: КЕКВ 2240 Оплата послуг (крім комунальних) | N2: КЕКВ 2271 Оплата теплопостачання | P2: КЕКВ 2272 Оплата водопостачання та водовідведення | R2: КЕКВ 2273 Оплата електроенергії | T2: КЕКВ 2274 Оплата природного газу | V2: КЕКВ 2800 Інші видатки | X2: Всього
B3: Затверджено | C3: Використано | D3: Затверджено | E3: Використано | F3: Затверджено | G3: Використано | H3: Затверджено | I3: Використано | J3: Затверджено | K3: Використано | L3: Затверджено | M3: Використано | N3: Затверджено | O3: Використано | P3: Затверджено | Q3: Використано | R3: Затверджено | S3: Використано | T3: Затверджено | U3: Використано | V3: Затверджено | W3: Використано | X3: Затверджено | Y3: Використано
B4: 1 | D4: =B4+1 -> 2 | F4: =D4+1 -> 3 | H4: =F4+1 -> 4 | J4: =H4+1 -> 5 | L4: =J4+1 -> 6 | N4: =L4+1 -> 7 | P4: =N4+1 -> 8 | R4: =P4+1 -> 9 | T4: =R4+1 -> 10 | V4: =T4+1 -> 11 | X4: =V4+1 -> 12
A5: 1 | B5: 1624380 | C5: 1624378.97 | D5: =576230-9750 -> 566480 | E5: 566484.82 | H5: 1000 | I5: 500 | J5: 168090 | K5: 170777.63 | L5: =29875-11138 -> 18737 | M5: 10072.67 | N5: 490930 | O5: 240541.96 | P5: 12190 | Q5: 13346.99 | R5: 56000 | S5: 45873.18 | T5: 0 | U5: 0 | V5: 5931 | W5: 5930.5 | X5: =B5+D5+F5+H5+J5+L5+N5+P5+R5+T5+V5 -> 2943738 | Y5: =C5+E5+G5+I5+K5+M5+O5+Q5+S5+U5+W5 -> 2677906.72
A6: 2 | B6: =773890-20300 -> 753590 | C6: 753591.68 | D6: =275640-7820+5990 -> 273810 | E6: 273809.85 | H6: 1000 | I6: 1000 | J6: 122510 | K6: 116564.18 | L6: =14985-7750 -> 7235 | M6: 6545.08 | N6: 235810 | O6: 122086.99 | P6: 9190 | Q6: 8010.15 | R6: 49630 | S6: 47154.03 | T6: 0 | U6: 0 | V6: 5020 | W6: 5019.9 | X6: 1457795 | Y6: 1333781.86
A7: 3 | B7: =1549390+13580 -> 1562970 | C7: 1562968.36 | D7: =548530+5220-850 -> 552900 | E7: 552896.13 | H7: 1000 | I7: 500 | J7: 170250 | K7: 144655.16 | L7: 6745 | M7: 5169.95 | N7: 532760 | O7: 433928.17 | P7: 16410 | Q7: 13529.96 | R7: 49100 | S7: 70938.07 | T7: 0 | U7: 0 | V7: 7354 | W7: 7353.7 | X7: 2899489 | Y7: 2791939.5
A8: 4 | B8: 1697700 | C8: 1697693.2 | D8: =599800-10730 -> 589070 | E8: 589071.5 | H8: 1000 | I8: 500 | J8: 213670 | K8: 224770.26 | L8: =34595-13212 -> 21383 | M8: 12765.44 | N8: 599600 | O8: 416722.26 | P8: 25240 | Q8: 27238.43 | R8: 55280 | S8: 57703.34 | T8: 0 | U8: 0 | V8: 9904 | W8: 9903.94 | X8: 3212847 | Y8: 3036368.37
A9: 5 | B9: =1737330+18460 -> 1755790 | C9: 1755786.92 | D9: =614570+7100-12010 -> 609660 | E9: 609664.25 | H9: 1000 | I9: 500 | J9: 222710 | K9: 195398.74 | L9: =30935-11712 -> 19223 | M9: 9778.58 | N9: 491090 | O9: 302219.44 | P9: 18040 | Q9: 11952.29 | R9: 57670 | S9: 55553.87 | T9: 0 | U9: 0 | V9: 18805 | W9: 18805.2 | X9: 3193988 | Y9: 2959659.29
A10: 6 | B10: 1451510 | C10: 1451506.08 | D10: =516220-6070 -> 510150 | E10: 510152.67 | H10: 1000 | I10: 500 | J10: 159730 | K10: 148220.46 | L10: =23605-2112 -> 21493 | M10: 11210.85 | N10: 579650 | O10: 344804.09 | P10: 14870 | Q10: 15366.85 | R10: 71540 | S10: 67878.48 | T10: 0 | U10: 0 | V10: 8484 | W10: 8483.84 | X10: 2818427 | Y10: 2558123.32
A11: 7 | B11: 1446480 | C11: 1446481.52 | D11: =513430-32810 -> 480620 | E11: 480615.23 | H11: 1000 | I11: 500 | J11: 171460 | K11: 166235.73 | L11: =12785+5325 -> 18110 | M11: 14618.39 | N11: 631800 | O11: 436966.59 | P11: 21180 | Q11: 16272.33 | R11: 67080 | S11: 56317.16 | T11: 0 | U11: 0 | V11: 6138 | W11: 6138.4 | X11: 2843868 | Y11: 2624145.35
A12: 8 | B12: 802260 | C12: 802254.81 | D12: =284340-9640 -> 274700 | E12: 274697.95 | H12: 1000 | I12: 500 | J12: 94220 | K12: 89310 | L12: 7735 | M12: 5774.06 | N12: 158640 | O12: 145522.22 | P12: 11060 | Q12: 8882.03 | R12: 51570 | S12: 51790.66 | T12: 0 | U12: 0 | V12: 3913 | W12: 3912.72 | X12: 1405098 | Y12: 1382644.45
A13: 9 | B13: =1720470+23020 -> 1743490 | C13: 1743483.06 | D13: =609680+8860+4150 -> 622690 | E13: 622694.27 | F13: 15000 | H13: 1000 | I13: 500 | J13: 157260 | K13: 130539.41 | L13: =10165+5538 -> 15703 | M13: 10495.78 | N13: 649690 | O13: 450632.27 | P13: 20450 | Q13: 14632.83 | R13: 51830 | S13: 50416.92 | T13: 0 | U13: 0 | V13: 4863 | W13: 4863.02 | X13: 3281976 | Y13: 3028257.56
A14: 10 | B14: 1703160 | C14: 1703156.95 | D14: =603010+31510 -> 634520 | E14: 634519.4 | H14: 1000 | I14: 500 | J14: 241570 | K14: 237796.99 | L14: =17785+5538 -> 23323 | M14: 16369.01 | N14: 565630 | O14: 345949.02 | P14: 29360 | Q14: 19462.68 | R14: 82280 | S14: 82776.5 | T14: 0 | U14: 0 | V14: 6820 | W14: 6819.66 | X14: 3287663 | Y14: 3047350.21
A15: 11 | B15: =1592240+6400 -> 1598640 | C15: 1598632.21 | D15: =565340+2460-8600 -> 559200 | E15: 559201.46 | F15: 4200 | H15: 1000 | I15: 1000 | J15: 236170 | K15: 220111.13 | L15: 10985 | M15: 9332.48 | N15: 617230 | O15: 483915.49 | P15: 24580 | Q15: 23170.14 | R15: 90790 | S15: 80264.13 | T15: 0 | U15: 0 | V15: 9251 | W15: 9251.24 | X15: 3152046 | Y15: 2984878.28
A16: 12 | B16: =610650-1580 -> 609070 | C16: 609068.17 | D16: =215080-600-850 -> 213630 | E16: 213630.84 | H16: 1000 | I16: 500 | J16: 73230 | K16: 60827.51 | L16: 8235 | M16: 5503.88 | P16: 4710 | Q16: 3240.82 | R16: 13760 | S16: 11951.29 | T16: 106470 | U16: 93361.2 | V16: 2236 | W16: 2086.11 | X16: 1032341 | Y16: 1000169.82
A17: 13 | B17: 1584160 | C17: 1584159.35 | D17: =559780+4380 -> 564160 | E17: 564155.93 | H17: 1000 | I17: 500 | J17: 137770 | K17: 150948.55 | L17: =23225+664 -> 23889 | M17: 15451.29 | N17: 574610 | O17: 447705.16 | P17: 46190 | Q17: 42571.86 | R17: 53970 | S17: 52484.65 | T17: 0 | U17: 0 | V17: 2139 | W17: 2138.58 | X17: 2987888 | Y17: 2860115.37
A18: 14 | B18: 1634840 | C18: 1634840.18 | D18: =578660+21850 -> 600510 | E18: 600512.02 | H18: 1000 | I18: 500 | J18: 172420 | K18: 163529.97 | L18: =12335+4899 -> 17234 | M18: 13621.99 | N18: 480950 | O18: 345158.81 | P18: 23500 | Q18: 13488.08 | R18: 57390 | S18: 51387.28 | T18: 0 | U18: 0 | V18: 4294 | W18: 4294.2 | X18: 2992138 | Y18: 2827332.53
A19: 15 | B19: =497560-6980 -> 490580 | C19: 490582.61 | D19: =175760-2680+920 -> 174000 | E19: 173997.76 | H19: 1000 | I19: 500 | J19: 40040 | K19: 39067.32 | L19: =13295+1917 -> 15212 | M19: 6224.72 | N19: 70570 | O19: 59973.34 | P19: 3370 | Q19: 2784.64 | R19: 7120 | S19: 6953.96 | T19: 9110 | U19: 8353.17 | V19: 1590 | W19: 1590.22 | X19: 812592 | Y19: 790027.74
A20: 16 | B20: =868880-6820 -> 862060 | C20: 862057.74 | D20: =306690-2620+8610 -> 312680 | E20: 312680.98 | H20: 1000 | I20: 500 | J20: 98740 | K20: 96495.14 | L20: 8515 | M20: 8371.2 | N20: 215360 | O20: 133680.63 | P20: 11990 | Q20: 10071.22 | R20: 41670 | S20: 39168.41 | T20: 0 | U20: 0 | V20: 3750 | W20: 3749.84 | X20: 1555765 | Y20: 1466775.16
A21: 17 | B21: =743170-8800 -> 734370 | C21: 734363.82 | D21: =262600-3380+9840 -> 269060 | E21: 269055.67 | H21: 1000 | I21: 500 | J21: 96450 | K21: 93046.46 | L21: 11247 | M21: 4922.8 | N21: 273630 | O21: 184939.71 | P21: 11910 | Q21: 8966.51 | R21: 10520 | S21: 9660.03 | T21: 88760 | U21: 78960.25 | V21: 3750 | W21: 3749.84 | X21: 1500697 | Y21: 1388165.09
A22: 18 | B22: 837840 | C22: 837834.41 | D22: =297750+13610 -> 311360 | E22: 311362.76 | H22: 1000 | I22: 500 | J22: 109340 | K22: 102483.32 | L22: 25352 | M22: 17951.82 | P22: 10450 | Q22: 7089.55 | R22: 51350 | S22: 46570.83 | T22: 207100 | U22: 113031.52 | V22: 1692 | W22: 1471.53 | X22: 1555484 | Y22: 1438295.74
A23: 19 | B23: 1440130 | C23: 1440126.57 | D23: =510930+7810 -> 518740 | E23: 518744.51 | F23: 158000 | G23: 72285.14 | H23: 1000 | I23: 500 | J23: 206560 | K23: 209210.44 | L23: =7825+5964 -> 13789 | M23: 12341.14 | N23: 390270 | O23: 185431.26 | P23: 25380 | Q23: 14553.89 | R23: 94890 | S23: 73483.32 | T23: 0 | U23: 0 | V23: 5990 | W23: 5990.4 | X23: 2854749 | Y23: 2532666.67
A24: 20 | B24: =1386930-38200 -> 1348730 | C24: 1348728.95 | D24: =491170-14700-3120 -> 473350 | E24: 473345.11 | H24: 1000 | I24: 500 | J24: 157170 | K24: 178060.17 | L24: =7595+1358 -> 8953 | M24: 6227.75 | N24: 496360 | O24: 334599.5 | P24: 12800 | Q24: 14568.46 | R24: 40750 | S24: 41383.51 | T24: 0 | U24: 0 | V24: 8275 | W24: 8274.5 | X24: 2547388 | Y24: 2405687.95
A25: 21 | B25: =1857290+47660 -> 1904950 | C25: 1904943.44 | D25: =660410+18340-37320 -> 641430 | E25: 641431.79 | H25: 1000 | I25: 500 | J25: 232230 | K25: 245996.34 | L25: 10355 | M25: 10376.63 | N25: 508460 | O25: 366961.53 | P25: 16100 | Q25: 19611.37 | R25: 56760 | S25: 56312.28 | T25: 0 | U25: 0 | V25: 2986 | W25: 2986.2 | X25: 3374271 | Y25: 3249119.58
A26: 22 | B26: 1467240 | C26: 1467239.4 | D26: =517980+10390 -> 528370 | E26: 528374.73 | H26: 1000 | I26: 500 | J26: 152980 | K26: 147561.91 | L26: 15995 | M26: 6830.4 | N26: 357810 | O26: 237692.31 | P26: 16530 | Q26: 14274.67 | R26: 61930 | S26: 58955.37 | T26: 0 | U26: 0 | V26: 4680 | W26: 4680 | X26: 2606535 | Y26: 2466108.79
A27: 23 | B27: 1510620 | C27: 1510621.82 | D27: =533170-52510 -> 480660 | E27: 480660.1 | H27: 1000 | I27: 500 | J27: 139210 | K27: 142995.43 | L27: =15515+5751 -> 21266 | M27: 15005.67 | N27: 508920 | O27: 306634.74 | P27: 19970 | Q27: 14759.2 | R27: 44920 | S27: 40592.83 | T27: 0 | U27: 0 | V27: 3422 | W27: 3421.74 | X27: 2729988 | Y27: 2515191.53
A28: 24 | B28: =1457680-18880 -> 1438800 | C28: 1438793.02 | D28: =524940-7260-16990 -> 500690 | E28: 500693.13 | H28: 1000 | I28: 1000 | J28: 145510 | K28: 137512.94 | L28: 18444 | M28: 4745.2 | N28: 405460 | O28: 232490.19 | P28: 13680 | Q28: 8288.93 | R28: 40150 | S28: 36973.78 | T28: 0 | U28: 0 | V28: 7358 | W28: 7358.26 | X28: 2571092 | Y28: 2367855.45
A29: 25 | B29: =875510-18140 -> 857370 | C29: 857366.53 | D29: =309400-6980+1380 -> 303800 | E29: 303800.51 | F29: 218000 | G29: 217999.84 | H29: 1000 | I29: 1000 | J29: 118760 | K29: 102392.41 | L29: =7394+5964 -> 13358 | M29: 11871.28 | N29: 427230 | O29: 191913.34 | P29: 22250 | Q29: 11740.75 | R29: 10460 | S29: 10505.26 | T29: 23750 | U29: 23793.14 | V29: 7520 | W29: 7519.54 | X29: 2003498 | Y29: 1739902.6
A30: 26 | B30: =797630-1060 -> 796570 | C30: 796570.33 | D30: =285220-400-5850 -> 278970 | E30: 278972.65 | H30: 1000 | I30: 500 | J30: 107000 | K30: 98244.42 | L30: 10064 | M30: 5264.87 | N30: 172940 | O30: 123384.76 | P30: 12460 | Q30: 7884.3 | R30: 9410 | S30: 19745.17 | T30: 43280 | U30: 29436.16 | V30: 1893 | W30: 1893 | X30: 1433587 | Y30: 1361895.66
A31: 27 | B31: =1469620-52280 -> 1417340 | C31: 1417341.9 | D31: =529040-20120+1110 -> 510030 | E31: 510029.56 | H31: 1000 | I31: 1000 | J31: 185880 | K31: 198558.03 | L31: =8664+5964 -> 14628 | M31: 10951.5 | N31: 527440 | O31: 374358.76 | P31: 12740 | Q31: 9850.52 | R31: 55250 | S31: 64741.61 | T31: 0 | U31: 0 | V31: 11611 | W31: 11610.74 | X31: 2735919 | Y31: 2598442.62
A32: 28 | B32: =1423070+81020 -> 1504090 | C32: 1504084.32 | D32: =501540+31180+7090 -> 539810 | E32: 539807.15 | H32: 1000 | I32: 500 | J32: 81790 | K32: 77284.32 | L32: 7984 | M32: 4887.63 | N32: 214420 | O32: 132239.93 | P32: 7830 | Q32: 4486.8 | R32: 9340 | S32: 5126.36 | T32: 26420 | U32: 23406.85 | V32: 2213 | W32: 2213.42 | X32: 2394897 | Y32: 2294036.78
A33: 29 | B33: =971560+40260+640 -> 1012460 | C33: 1012458.73 | D33: =341190+15500-2970 -> 353720 | E33: 353722.81 | H33: 1000 | I33: 500 | J33: 227610 | K33: 212291.11 | L33: 8684 | M33: 4413.78 | N33: 176470 | O33: 171539.73 | P33: 8080 | Q33: 5932.95 | R33: 61000 | S33: 27043.17 | T33: 24450 | U33: 8621.29 | V33: 2751 | W33: 2751.08 | X33: 1876225 | Y33: 1799274.65
A34: 30 | B34: =1395970+5840+2920 -> 1404730 | C34: 1404727.31 | D34: =494250+2240+5180 -> 501670 | E34: 501673.9 | H34: 1000 | I34: 500 | J34: 165390 | K34: 162979.19 | L34: =10704+5964 -> 16668 | M34: 12463.41 | N34: 501180 | O34: 193038.36 | P34: 14780 | Q34: 12470.32 | R34: 42220 | S34: 40157.65 | T34: 0 | U34: 0 | V34: 4118 | W34: 4117.54 | X34: 2651756 | Y34: 2332127.68
A35: 31 | B35: =1301170-7120-3560 -> 1290490 | C35: 1290485.42 | D35: =460460-2740+7980 -> 465700 | E35: 465702.95 | H35: 1000 | I35: 500 | J35: 150200 | K35: 158116.9 | L35: =38104-3006 -> 35098 | M35: 12462.15 | N35: 537150 | O35: 342386.21 | P35: 13460 | Q35: 12202.8 | R35: 58080 | S35: 75161.89 | T35: 0 | U35: 0 | V35: 8798 | W35: 8797.58 | X35: 2559976 | Y35: 2365815.9
A36: 32 | B36: =1103840-10440 -> 1093400 | C36: 1093400.15 | D36: =387790-4020+3310 -> 387080 | E36: 387079.51 | H36: 1000 | I36: 500 | J36: 131980 | K36: 115560.58 | L36: =23634-12250 -> 11384 | M36: 4215.8 | N36: 264550 | O36: 152114.1 | P36: 11770 | Q36: 10154.15 | R36: 38090 | S36: 43669.87 | T36: 7260 | U36: 6621.87 | V36: 6375 | W36: 6374.72 | X36: 1952889 | Y36: 1819690.75
A37: 33 | B37: =1538340-24640 -> 1513700 | C37: 1513694.56 | D37: =552330-9480+6830 -> 549680 | E37: 549679.72 | F37: 8000 | G37: 7963.06 | H37: 1000 | I37: 500 | J37: 199070 | K37: 193673.68 | L37: 8984 | M37: 7302.66 | N37: 467760 | O37: 291083.7 | P37: 18530 | Q37: 17421.32 | R37: 63170 | S37: 56825.03 | T37: 0 | U37: 0 | V37: 4660 | W37: 4660.34 | X37: 2834554 | Y37: 2642804.07
A38: 34 | B38: =1307120-8220 -> 1298900 | C38: 1298899.31 | D38: =465890-3160-11460 -> 451270 | E38: 451267.74 | H38: 1000 | I38: 1000 | J38: 151090 | K38: 156925.58 | L38: =7954+3044 -> 10998 | M38: 8339.76 | N38: 426830 | O38: 256499.6 | P38: 12070 | Q38: 9642.43 | R38: 50830 | S38: 46542.14 | T38: 0 | U38: 0 | V38: 4371 | W38: 4371.22 | X38: 2407359 | Y38: 2233487.78
A39: 35 | B39: 1299980 | C39: 1299982.63 | D39: =460290+14800 -> 475090 | E39: 475088.25 | H39: 1000 | I39: 500 | J39: 131530 | K39: 135822.44 | L39: =8234+3290 -> 11524 | M39: 7642.79 | N39: 308020 | O39: 198406.85 | P39: 12230 | Q39: 9114.2 | R39: 32510 | S39: 31876.08 | T39: 0 | U39: 0 | V39: 6375 | W39: 6374.44 | X39: 2278259 | Y39: 2164807.68
A40: 37 | B40: =1445340-31920 -> 1413420 | C40: 1413421.92 | D40: =511210-12300+17720 -> 516630 | E40: 516628.03 | H40: 1000 | I40: 1000 | J40: 154150 | K40: 140662.62 | L40: 6354 | M40: 5104.46 | N40: 408390 | O40: 233166.76 | P40: 23950 | Q40: 19423.79 | R40: 51450 | S40: 45565.79 | T40: 0 | U40: 0 | V40: 4070 | W40: 4070.04 | X40: 2579414 | Y40: 2379043.41
A41: 38 | B41: =1574240-5600 -> 1568640 | C41: 1568635.64 | D41: =558060-2160+7500 -> 563400 | E41: 563399.68 | H41: 1000 | I41: 500 | J41: 154280 | K41: 145701.64 | L41: 8973 | M41: 7065.73 | N41: 551220 | O41: 393309.57 | P41: 11700 | Q41: 13031.61 | R41: 49690 | S41: 43191.26 | T41: 0 | U41: 0 | V41: 7376 | W41: 7376.4 | X41: 2916279 | Y41: 2742211.53
A42: 39 | B42: =976120+30020 -> 1006140 | C42: 1006139.59 | D42: =345040+11560+5690 -> 362290 | E42: 362292.74 | H42: 1000 | I42: 500 | J42: 106410 | K42: 95609.62 | L42: 6923 | M42: 4313.68 | N42: 241270 | O42: 133756.14 | P42: 7610 | Q42: 6563.73 | R42: 41060 | S42: 31439.21 | T42: 0 | U42: 0 | V42: 5099 | W42: 5098.66 | X42: 1777802 | Y42: 1645713.37
A43: 40 | B43: =1232150-5280 -> 1226870 | C43: 1226870.77 | D43: =435980-2040+23880 -> 457820 | E43: 457788.81 | H43: 1000 | I43: 1000 | J43: 137170 | K43: 150574.26 | L43: 7088 | M43: 4700.29 | N43: 399900 | O43: 233750.03 | P43: 23890 | Q43: 12317.45 | R43: 69090 | S43: 65124.44 | T43: 0 | U43: 0 | V43: 3343 | W43: 3345.56 | X43: 2326171 | Y43: 2155471.61
A44: Разом | B44: =SUM(B5:B43) -> 50707460 | C44: =C5+C6+C7+C8+C9+C10+C11+C12+C13+C14+C15+C16+C17+C18+C19+C20+C21+C22+C23+C24+C25+C26+C27+C28+C29+C30+C31+C32+C33+C34+C35+C36+C37+C38+C39+C40+C41+C42+C43 -> 50707372.35 | D44: =D5+D6+D7+D8+D9+D10+D11+D12+D13+D14+D15+D16+D17+D18+D19+D20+D21+D22+D23+D24+D25+D26+D27+D28+D29+D30+D31+D32+D33+D34+D35+D36+D37+D38+D39+D40+D41+D42+D43 -> 17979400 | E44: =SUM(E5:E43) -> 17979386.87 | F44: 403200 | G44: 298248.04 | H44: 39000 | I44: 23500 | J44: 5921600 | K44: 5756511.99 | L44: 547870 | M44: 350706.57 | N44: 15460000 | O44: =SUM(O5:O43) -> 9979503.52 | P44: 632500 | Q44: 508371 | R44: 1899600 | S44: 1799258.81 | T44: 536600 | U44: 385585.45 | V44: =SUM(V5:V43) -> 219218 | W44: =SUM(W5:W43) -> 218847.82 | X44: 94346448 | Y44: 88007292.42
